fUST/lending_fUST_20260315
["ID","MTS","AMOUNT","RATE_DAILY","PERIOD"]
[408376632,1773529832465,-5000.0,0.00013535,2]
[408376633,1773529832474,-400.40279891,0.00013634,2]
[408376634,1773529832484,-500.61765988,0.00013634,2]
[408376635,1773529832493,-190.42323242,0.00013678,2]
[408376636,1773529832504,-500.0,0.00013698,2]
[408376637,1773529832514,-500.0,0.00013698,2]
[408376638,1773529832525,-156.0,0.00013699,2]
[408376639,1773529832534,-166.0062562,0.00013699,2]
[408376640,1773529832543,-1000.0,0.00013699,2]
[408376641,1773529832553,-1000.0,0.00013699,2]
[408376642,1773529832562,-151.0,0.000137,2]
[408376643,1773529832571,-5569.68017852,0.00013703,2]
[408376644,1773529832580,-1183.56767607,0.00013723,2]
[408376645,1773529832589,-179.957,0.00013808,2]
[408376646,1773529832598,-1000.0,0.00013842,2]
[408376647,1773529832607,-500.0,0.00013983,2]
[408376648,1773529832617,-1500.0,0.00014068,2]
[408376649,1773529832627,-1387.70711699,0.00014068,2]
[408376650,1773529832636,-1500.0,0.00014068,2]
[408376651,1773529832646,-295.06900781,0.00014175,2]
[408376652,1773529832655,-152.11907015,0.00014224,7]
[408376653,1773529832664,-196.1323308,0.0001435,2]
[408376654,1773529832673,-151.0,0.000144,2]
[408376655,1773529832683,-1000.0,0.00014531,2]
[408376656,1773529832693,-2000.0,0.00014616,2]
[408376657,1773529832703,-239.41291991,0.00014616,2]
[408376658,1773529832713,-5602.82685113,0.0001467,2]
[408376659,1773529832722,-186.6634186,0.00014698,2]
[408376660,1773529832731,-42.67708644,0.00014945,2]
[408376661,1773529832743,-361.63977585,0.00014945,2]
[408376671,1773529838477,-437.0,0.000102,2]
[408376672,1773529838488,-95.96013771,0.00014945,2]
[408376673,1773529838497,-12.81883342,0.00015,2]
[408376674,1773529838539,-1487.95953588,0.00015,2]
[408376675,1773529838548,-2037.59046412,0.00015,2]
[408377013,1773529843524,-517.0423159,0.00014945,2]
[408377015,1773529843534,-717.0,0.00015,2]
[408377017,1773529843544,-88.11132431,0.00015,2]
[408377019,1773529843556,-1983.165,0.00015,2]
[408377029,1773529843637,-1076.72367569,0.00015,2]
[408377031,1773529843646,-270.83333333,0.00015,2]
[408377033,1773529843656,-243.0,0.00015,2]
[408377035,1773529843665,-192.245018,0.00015068,2]
[408377037,1773529843675,-1500.0,0.00015079,2]
[408377039,1773529843684,-151.0,0.000151,2]
[408377041,1773529843693,-982.17366134,0.00015164,2]
[408377073,1773529843965,-1000.0,0.00015227,2]
[408377075,1773529843975,-244.0,0.00015227,2]
[408377077,1773529843984,-500.0,0.000154,2]
[408377078,1773529843993,-500.0,0.000154,2]
[408377079,1773529844001,-500.0,0.000154,2]
[408377080,1773529844010,-500.0,0.000154,2]
[408377081,1773529844019,-500.0,0.000154,2]
[408377082,1773529844028,-500.0,0.000154,2]
[408377083,1773529844036,-500.0,0.000154,2]
[408377084,1773529844045,-500.0,0.000154,2]
[408377085,1773529844053,-990.29864452,0.000154,2]
[408377086,1773529844062,-500.0,0.000154,2]
[408377087,1773529844071,-500.0,0.000154,2]
[408377088,1773529844079,-500.0,0.000154,2]
[408377089,1773529844089,-500.0,0.000154,2]
[408377090,1773529844101,-500.0,0.000154,2]
[408377091,1773529844110,-700.0,0.000154,2]
[408377092,1773529844119,-455.1075383,0.00015554,2]
[408377093,1773529844128,-1567.71336261,0.00015627,2]
[408377095,1773529844138,-6205.15950449,0.00015637,3]
[408377097,1773529844147,-151.0,0.000158,2]
[408377099,1773529844156,-500.1,0.000159,2]
[408377101,1773529844166,-190.42323242,0.00015957,2]
[408377103,1773529844176,-1394.0,0.00016,2]
[408377105,1773529844185,-500.0,0.00016,2]
[408377107,1773529844194,-500.0,0.00016,2]
[408377109,1773529844204,-500.0,0.00016,2]
[408377111,1773529844214,-949.99656928,0.00016,2]
[408377113,1773529844224,-152.11907015,0.00016136,14]
[408377115,1773529844234,-1000.0,0.00016293,2]
[408377117,1773529844244,-1000.0,0.00016293,2]
[408377119,1773529844253,-1061.8,0.00016438,2]
[408377121,1773529844264,-151.0,0.000165,2]
[408377123,1773529844273,-4080.63325551,0.00016604,3]
[408377253,1773529845470,-2381.21851111,0.00016604,3]
[408377255,1773529845480,-270.83333333,0.00016604,3]
[408377257,1773529845489,-163.44,0.00016666,2]
[408377259,1773529845499,-1000.0,0.00016749,2]
[408377261,1773529845507,-492.0,0.00016749,2]
[408377263,1773529845517,-500.1,0.000169,2]
[408377265,1773529845526,-172.0,0.00016959,3]
[408377267,1773529845535,-151.0,0.000172,2]
[408377269,1773529845544,-1061.8,0.00017208,2]
[408377271,1773529845554,-228.0,0.00017507,3]
[408377273,1773529845563,-6807.49215785,0.00017571,4]
[408377275,1773529845572,-500.1,0.000179,2]
[408377277,1773529845581,-151.0,0.000179,2]
[408377279,1773529845590,-275.57316553,0.0001793,2]
[408377281,1773529845599,-1061.8,0.00017977,2]
[408377283,1773529845608,-152.11907015,0.00018048,30]
[408377285,1773529845617,-468.99,0.000181,2]
[408377287,1773529845626,-190.42323242,0.00018236,2]
[408377289,1773529845635,-1000.0,0.00018424,2]
[408377291,1773529845644,-791.0,0.00018424,2]
[408377293,1773529845653,-179.93259121,0.00018492,5]
[408377295,1773529845662,-7295.13651257,0.00018538,9]
[408377297,1773529845671,-12376.0,0.00018558,5]
[408377299,1773529845680,-151.0,0.000186,2]
[408377301,1773529845690,-230.0,0.00018603,3]
[408377303,1773529845699,-1061.8,0.00018746,2]
[408377305,1773529845708,-500.1,0.000189,2]
[408377306,1773529845717,-1014.433,0.00019,2]
[408377308,1773529845728,-505.72,0.00019,2]
[408377310,1773529845737,-454.8266845,0.00019052,2]
[408377313,1773529845746,-5000.0,0.00019177,2]
[408377315,1773529845755,-300.0,0.00019178,2]
[408377317,1773529845764,-300.0,0.00019178,2]
[408377318,1773529845773,-300.0,0.00019178,2]
[408377320,1773529845782,-300.0,0.00019178,2]
[408377322,1773529845791,-300.0,0.00019178,2]
[408377323,1773529845799,-300.0,0.00019178,2]
[408377324,1773529845808,-300.0,0.00019178,2]
[408377325,1773529845819,-300.0,0.00019178,2]
[408377326,1773529845827,-300.0,0.00019178,2]
[408377327,1773529845836,-300.0,0.00019178,2]
[408377328,1773529845845,-300.0,0.00019178,2]
[408377329,1773529845864,-300.0,0.00019178,2]
[408377330,1773529845873,-300.0,0.00019178,2]
[408377331,1773529845882,-300.0,0.00019178,2]
[408377332,1773529845891,-300.0,0.00019178,2]
[408377333,1773529845900,-300.0,0.00019178,2]
[408377334,1773529845910,-300.0,0.00019178,2]
[408377336,1773529845919,-300.0,0.00019178,2]
[408377337,1773529845928,-300.0,0.00019178,2]
[408377339,1773529845938,-300.0,0.00019178,2]
[408377341,1773529845951,-300.0,0.00019178,2]
[408377342,1773529845960,-300.0,0.00019178,2]
[408377344,1773529845970,-300.0,0.00019178,2]
[408377345,1773529845979,-300.0,0.00019178,2]
[408377346,1773529845988,-300.0,0.00019178,2]
[408377347,1773529845997,-300.0,0.00019178,2]
[408377348,1773529846007,-500.0,0.00019236,2]
[408377350,1773529846016,-500.0,0.00019236,2]
[408377351,1773529846025,-500.0,0.00019236,2]
[408377352,1773529846034,-151.0,0.000193,2]
[408377353,1773529846044,-1061.8,0.00019515,2]
[408377354,1773529846053,-185.32114665,0.00019562,2]
[408377355,1773529846063,-800.0,0.00019588,2]
[408377356,1773529846073,-800.0,0.00019596,2]
[408377357,1773529846082,-800.0,0.00019598,2]
[408377358,1773529846091,-800.0,0.00019601,2]
[408377359,1773529846104,-64963.10389403,0.00019602,2]
[408377360,1773529846114,-38000.0,0.00019633,3]
[408377361,1773529846123,-800.0,0.00019671,2]
[408377362,1773529846132,-800.0,0.00019682,2]
[408377363,1773529846143,-232.0,0.00019699,3]
[408377364,1773529846153,-150.0,0.000197,14]
[408377366,1773529846162,-150.0,0.000197,14]
[408377368,1773529846173,-150.0,0.000197,14]
[408377369,1773529846183,-200.0,0.000197,14]
[408377370,1773529846192,-150.0,0.000197,14]
[408377371,1773529846201,-150.0,0.000197,14]
[408377372,1773529846211,-150.0,0.000197,14]
[408377373,1773529846220,-165.0,0.000197,14]
[408377374,1773529846230,-150.0,0.000197,14]
[408377375,1773529846239,-158.0,0.000197,14]
[408377376,1773529846249,-800.0,0.0001974,2]
[408377377,1773529846258,-3002.0,0.0001975,2]
[408377378,1773529846268,-800.0,0.00019752,2]
[408377379,1773529846277,-1456.530769,0.0001976,5]
[408377380,1773529846287,-1000.0,0.0001978,5]
[408377381,1773529846296,-1000.0,0.00019784,2]
[408377382,1773529846306,-1000.0,0.00019784,2]
[408377383,1773529846315,-1000.0,0.00019784,2]
[408377384,1773529846324,-2900.0,0.000198,4]
[408377385,1773529846333,-1000.0,0.000198,5]
[408377387,1773529846343,-179161.28391602,0.000198,4]
[408377388,1773529846359,-6061.6140639,0.000198,4]
[408377389,1773529846514,-11396.0,0.00019178,5]
[408377390,1773529846527,-3049.0,0.00019178,5]
[408377391,1773529846541,-15191.81405601,0.000198,4]
[408377392,1773529846556,-3239.46749714,0.000198,4]
[408377474,1773531031499,-4659.86638722,8.952e-05,2]
[408377475,1773531031509,-5000.0,9.042e-05,2]
[408377477,1773531031518,-547.0,9.042e-05,2]
[408377479,1773531031528,-300.0,9.601e-05,2]
[408377481,1773531031538,-132.75039475,9.601e-05,2]
[408377523,1773531037618,-167.24960525,9.601e-05,2]
[408377524,1773531037628,-183.0,0.00010878,2]
[408377525,1773531037637,-250.0,0.00011947,2]
[408377526,1773531037646,-527.0,0.00013,3]
[408377527,1773531037655,-400.0,0.000131,5]
[408377528,1773531037664,-359.46541977,0.00013699,2]
[408377529,1773531037675,-640.53458023,0.00013699,2]
[408377530,1773531037684,-183.0,0.00013878,2]
[408377531,1773531037693,-270.83333333,0.00015,2]
[408377533,1773531037702,-192.245018,0.0001519,2]
[408377535,1773531037711,-214.5714971,0.00015568,2]
[408377537,1773531037720,-619.4,0.00016438,2]
[408377539,1773531037730,-183.0,0.00016878,2]
[408377541,1773531037738,-800.0,0.00017144,5]
[408377543,1773531037747,-619.4,0.00017208,2]
[408377545,1773531037756,-544.9817316,0.00017312,2]
[408377547,1773531037767,-337.0,0.00017479,3]
[408377549,1773531037777,-619.4,0.00017977,2]
[408377551,1773531037786,-187.0,0.00018575,3]
[408377553,1773531037795,-619.4,0.00018746,2]
[408377555,1773531037804,-875.17623974,0.00018867,5]
[408377557,1773531037815,-758.50493675,0.00018867,5]
[408377898,1773531042765,-11437.0,0.00018867,5]
[408377900,1773531042775,-708.0,0.00018867,5]
[408377902,1773531042784,-2732.0,0.00018867,5]
[408377904,1773531042793,-463.0,0.00019,5]
[408377906,1773531042802,-344.69487726,0.00019388,2]
[408377908,1773531042811,-152.33858596,0.000195,2]
[408377910,1773531042820,-619.4,0.00019515,2]
[408377912,1773531042829,-500.0,0.00019598,2]
[408377914,1773531042838,-500.0,0.00019598,2]
[408377916,1773531042847,-353.29550725,0.00019598,2]
[408377918,1773531042856,-190.70412145,0.00019598,2]
[408377920,1773531042864,-8401.62669955,0.00019599,2]
[408377923,1773531042879,-962.48900003,0.00019599,2]
[408378210,1773531045703,-1121.0,0.00019599,2]
[408378229,1773531045876,-8647.56163738,0.00019599,2]
[408378231,1773531045886,-2626.0,0.00019599,5]
[408378232,1773531045896,-8788.46996069,0.00019599,5]
[408378556,1773532231641,-330.04220898,0.00010393,2]
[408378558,1773532231653,-467.52642622,0.00010393,2]
[408378561,1773532231707,-667.99308325,0.00010393,2]
[408378563,1773532231716,-1474.09587999,0.00010498,2]
[408378565,1773532231728,-3525.90412001,0.00010498,2]
[408378567,1773532231737,-1200.0,0.00010603,2]
[408378569,1773532231747,-569.0,0.00010604,2]
[408378571,1773532231757,-300.0,0.00011725,2]
[408378572,1773532231766,-300.0,0.00011725,2]
[408378573,1773532231776,-2196.0,0.00011726,2]
[408378574,1773532231785,-1000.0,0.00013699,2]
[408378575,1773532231795,-148.48786114,0.00014011,2]
[408378590,1773532237752,-111.41009866,0.00014011,2]
[408378592,1773532237761,-2187.0,0.00014726,2]
[408378594,1773532237771,-230.10385372,0.00014938,7]
[408378596,1773532237780,-193.23773289,0.00015,2]
[408378600,1773532237813,-77.59560044,0.00015,2]
[408378602,1773532237823,-2150.738,0.00015038,2]
[408378604,1773532237833,-1606.92973331,0.00015038,2]
[408378606,1773532237842,-3181.7433684,0.00015717,2]
[408378608,1773532237852,-361.3,0.00016438,2]
[408378610,1773532237861,-361.3,0.00017208,2]
[408378612,1773532237870,-164.317399,0.00017338,2]
[408378614,1773532237880,-291.0,0.00017479,3]
[408378616,1773532237889,-361.3,0.00017977,2]
[408378618,1773532237898,-20509.33473738,0.00018553,2]
[408378620,1773532237909,-777.43067162,0.00018553,2]
[408379419,1773532246127,-821.14502823,0.00018368,2]
[408379421,1773532246136,-1293.78072354,0.00018553,2]
[408379901,1773532913412,1000.0,0.000104,120]
[408379929,1773532946865,1422.58204378,0.00010214,120]
[408379931,1773532946894,3300.0,0.00010214,120]
[408379933,1773532946922,3300.0,0.00010214,120]
[408380306,1773533365143,-5000.0,4.221e-05,2]
[408380307,1773533365164,-5000.0,4.264e-05,2]
[408380308,1773533365184,-300.0,4.346e-05,2]
[408380309,1773533365203,-300.0,4.346e-05,2]
[408380310,1773533365224,-1200.0,4.349e-05,2]
[408380311,1773533365244,-300.0,4.522e-05,2]
[408380312,1773533365263,-300.0,4.522e-05,2]
[408380313,1773533365283,-300.0,4.522e-05,2]
[408380314,1773533365304,-91.20841887,4.666e-05,2]
[408380339,1773533431919,-5000.0,4.574e-05,2]
[408380340,1773533431928,-1200.0,4.619e-05,2]
[408380342,1773533431938,-1609.32441552,4.62e-05,2]
[408380348,1773533432039,-3390.67558448,4.62e-05,2]
[408380349,1773533432049,-300.0,4.665e-05,2]
[408380350,1773533432059,-300.0,4.665e-05,2]
[408380351,1773533432068,-69.36768763,4.666e-05,2]
[408380352,1773533432077,-287.0,4.781e-05,2]
[408380353,1773533432087,-1691.96474972,5e-05,2]
[408380355,1773533432097,-480.0,5.081e-05,2]
[408380357,1773533432106,-420.0,5.132e-05,2]
[408380358,1773533432118,-587.0,5.645e-05,2]
[408380359,1773533432127,-461.0,6.21e-05,2]
[408380360,1773533432138,-3360.4662445,6.495e-05,2]
[408380361,1773533432147,-3604.3284121,7.99e-05,2]
[408380362,1773533432157,-1147.81681431,9.485e-05,2]
[408380363,1773533432169,-380.32218432,9.485e-05,2]
[408380369,1773533438245,-2351.21893982,9.485e-05,2]
[408380370,1773533438255,-1805.78107018,9.7e-05,2]
[408380371,1773533438379,-194.21892982,9.7e-05,2]
[408380372,1773533438388,-2000.0,9.8e-05,2]
[408380373,1773533438397,-2000.0,9.9e-05,2]
[408380374,1773533438406,-500.0,9.999e-05,2]
[408380375,1773533438415,-500.0,9.999e-05,2]
[408380376,1773533438424,-380.81718367,9.999e-05,2]
[408380377,1773533438435,-119.18281633,9.999e-05,2]
[408380378,1773533438444,-172.81596771,9.999e-05,2]
[408380379,1773533438453,-502.58831501,9.999e-05,2]
[408380380,1773533438462,-500.0,9.999e-05,2]
[408380381,1773533438471,-500.0,9.999e-05,2]
[408380382,1773533438479,-380.07551382,9.999e-05,2]
[408380383,1773533438488,-500.0,9.999e-05,2]
[408380384,1773533438497,-500.0,9.999e-05,2]
[408380385,1773533438506,-500.0,9.999e-05,2]
[408380386,1773533438515,-500.0,9.999e-05,2]
[408380387,1773533438524,-500.0,9.999e-05,2]
[408380388,1773533438533,-500.0,9.999e-05,2]
[408380389,1773533438542,-500.0,9.999e-05,2]
[408380390,1773533438551,-500.0,9.999e-05,2]
[408380391,1773533438560,-500.0,9.999e-05,2]
[408380392,1773533438569,-500.0,9.999e-05,2]
[408380393,1773533438579,-500.0,9.999e-05,2]
[408380394,1773533438588,-500.0,9.999e-05,2]
[408380395,1773533438598,-500.0,9.999e-05,2]
[408380396,1773533438610,-555.0,9.999e-05,2]
[408380397,1773533438619,-500.0,9.999e-05,2]
[408380398,1773533438628,-500.0,9.999e-05,2]
[408380399,1773533438637,-500.0,9.999e-05,2]
[408380400,1773533438648,-272.26317398,9.999e-05,2]
[408380401,1773533438657,-500.0,9.999e-05,2]
[408380402,1773533438667,-500.0,9.999e-05,2]
[408380403,1773533438678,-500.0,9.999e-05,2]
[408380404,1773533438687,-500.0,9.999e-05,2]
[408380405,1773533438696,-500.0,9.999e-05,2]
[408380406,1773533438706,-500.0,9.999e-05,2]
[408380407,1773533438715,-500.0,9.999e-05,2]
[408380408,1773533438724,-500.0,9.999e-05,2]
[408380409,1773533438734,-500.0,9.999e-05,2]
[408380410,1773533438744,-486.90690718,9.999e-05,2]
[408380411,1773533438756,-13.09309282,9.999e-05,2]
[408380412,1773533438766,-500.0,9.999e-05,2]
[408380413,1773533438775,-500.0,9.999e-05,2]
[408380414,1773533438785,-500.0,9.999e-05,2]
[408380415,1773533438794,-36.36434785,9.999e-05,2]
[408380430,1773533440622,-463.63565215,9.999e-05,2]
[408380432,1773533440631,-500.0,9.999e-05,2]
[408380434,1773533440640,-238.59091857,9.999e-05,2]
[408380436,1773533440654,-261.40908143,9.999e-05,2]
[408380438,1773533440663,-134.86992566,9.999e-05,2]
[408380696,1773533443125,-365.13007434,9.999e-05,2]
[408380698,1773533443135,-500.0,9.999e-05,2]
[408380701,1773533443145,-500.0,9.999e-05,2]
[408380703,1773533443154,-500.0,9.999e-05,2]
[408380705,1773533443164,-500.0,9.999e-05,2]
[408380706,1773533443173,-500.0,9.999e-05,2]
[408380708,1773533443182,-500.0,9.999e-05,2]
[408380711,1773533443191,-339.23804424,9.999e-05,2]
[408380712,1773533443200,-11207.15691302,0.0001,2]
[408380715,1773533443210,-1110.62925008,0.0001,2]
[408380716,1773533443219,-368.50031676,0.0001,2]
[408380719,1773533443229,-2000.0,0.0001,2]
[408380720,1773533443238,-500.0,0.000101,2]
[408380722,1773533443247,-143.80675782,0.000101,2]
[408381006,1773533446015,-879.0,9.899e-05,2]
[408381183,1773533585141,2000.0,0.000102,120]
[408381184,1773533644138,-5000.0,9.605e-05,2]
[408381185,1773533648949,-5000.0,9.702e-05,2]
[408381346,1773534632039,-5000.0,8.728e-05,2]
[408381348,1773534632051,-1200.0,8.816e-05,2]
[408381350,1773534632060,-2875.59281743,8.817e-05,2]
[408381363,1773534632175,-2124.40718257,8.817e-05,2]
[408381365,1773534632184,-544.0,8.817e-05,2]
[408381367,1773534632194,-300.0,9.082e-05,2]
[408381369,1773534632205,-300.0,9.082e-05,2]
[408381371,1773534632215,-300.0,9.083e-05,2]
[408381373,1773534632224,-300.0,9.083e-05,2]
[408381375,1773534632234,-13672.97398769,9.18e-05,2]
[408381406,1773534632677,-5365.54609771,9.18e-05,2]
[408381407,1773534632687,-256.0,9.698e-05,2]
[408381408,1773534632698,-209.06700247,9.7e-05,2]
[408381410,1773534632707,-1719.46594996,9.899e-05,2]
[408381411,1773534632716,-500.0,9.899e-05,2]
[408381413,1773534632726,-500.0,9.899e-05,2]
[408381416,1773534632735,-500.0,9.899e-05,2]
[408381418,1773534632745,-500.0,9.899e-05,2]
[408381420,1773534632754,-205.83950994,9.899e-05,2]
[408381422,1773534632764,-500.0,9.899e-05,2]
[408381424,1773534632773,-250.5,9.899e-05,2]
[408381426,1773534632782,-500.0,9.899e-05,2]
[408381428,1773534632791,-500.0,9.899e-05,2]
[408381430,1773534632800,-474.0100218,9.899e-05,2]
[408381432,1773534632809,-5741.36441554,9.9e-05,2]
[408381434,1773534632818,-877.8738289,9.921e-05,2]
[408381436,1773534632828,-265.65985597,9.921e-05,2]
[408381438,1773534632840,-1614.49945589,9.921e-05,2]
[408381440,1773534632851,-679.23543468,9.921e-05,2]
[408381478,1773534638745,-6344.03099046,9.921e-05,2]
[408381479,1773534638763,-151.0,9.921e-05,2]
[408381480,1773534638778,-151.0,9.921e-05,2]
[408381481,1773534638789,-151.0,9.921e-05,2]
[408381482,1773534638801,-151.0,9.921e-05,2]
[408381483,1773534638813,-300.0,9.99e-05,2]
[408381484,1773534638824,-420.0,9.99e-05,2]
[408381485,1773534638837,-420.0,9.991e-05,2]
[408381486,1773534638852,-357.0,9.991e-05,2]
[408381487,1773534638866,-2000.0,0.000101,2]
[408381488,1773534638879,-172.37684369,0.00010114,2]
[408381489,1773534638890,-356.65800777,0.00010213,2]
[408381495,1773534638903,-261.82240298,0.00010213,2]
[408381498,1773534638917,-2407.26072832,0.00010214,120]
[408381503,1773534638932,-18432.3105312,0.00010214,120]
[408381506,1773534638946,-55720.63346579,0.00010214,120]
[408381622,1773534640902,-4397.70110724,9.822e-05,2]
[408381862,1773534643249,-288.07357235,9.822e-05,2]
[408382172,1773534646302,-314.22532041,9.822e-05,2]
[408382174,1773534646312,-78106.81182839,0.00010214,120]
[408382176,1773534646323,-6157.3125105,0.00010214,120]
[408382178,1773534646335,-122962.78111456,0.00010214,120]
[408382180,1773534646344,-151.0,0.00010214,2]
[408382182,1773534646354,-151.0,0.00010214,2]
[408382184,1773534646364,-151.0,0.00010214,2]
[408382186,1773534646373,-151.0,0.00010214,2]
[408382188,1773534646382,-151.0,0.00010214,2]
[408382190,1773534646392,-151.0,0.00010214,2]
[408382192,1773534646402,-151.255306,0.00010214,2]
[408382194,1773534646411,-213.842658,0.00010214,2]
[408382196,1773534646420,-151.0,0.00010914,2]
[408382198,1773534646433,-151.0,0.00010914,2]
[408382200,1773534646454,-151.0,0.00010914,2]
[408382202,1773534646464,-8903.425737,0.00010914,2]
[408382204,1773534646473,-151.0,0.00010959,2]
[408382206,1773534646484,-151.0,0.00010959,2]
[408382208,1773534646497,-4154.38746494,0.0001098,2]
[408382210,1773534646506,-500.0,0.00010989,2]
[408382212,1773534646517,-587.0,0.0001099,2]
[408382214,1773534646526,-34284.49613388,0.00011,2]
[408382216,1773534646536,-151.0,0.00011,2]
[408382218,1773534646546,-151.0,0.00011,2]
[408382220,1773534646555,-151.0,0.00011,2]
[408382222,1773534646565,-151.0,0.00011,2]
[408382224,1773534646574,-151.0,0.00011,2]
[408382226,1773534646584,-151.0,0.00011,2]
[408382228,1773534646593,-151.0,0.00011,2]
[408382230,1773534646603,-151.0,0.00011,2]
[408382232,1773534646613,-151.0,0.00011,2]
[408382234,1773534646623,-500.0,0.00011008,2]
[408382236,1773534646632,-500.0,0.00011012,2]
[408382238,1773534646641,-500.0,0.00011012,2]
[408382240,1773534646651,-500.0,0.000111,2]
[408382242,1773534646660,-500.0,0.00011125,2]
[408382244,1773534646673,-500.0,0.00011206,2]
[408382246,1773534646683,-500.0,0.00011206,2]
[408382248,1773534646693,-500.0,0.00011206,2]
[408382250,1773534646703,-500.0,0.00011206,2]
[408382252,1773534646712,-500.0,0.00011206,2]
[408382254,1773534646721,-500.0,0.00011236,2]
[408382256,1773534646730,-500.0,0.00011236,2]
[408382258,1773534646739,-500.0,0.00011259,2]
[408382260,1773534646748,-500.0,0.00011259,2]
[408382262,1773534646758,-877.8738289,0.0001128,2]
[408382264,1773534646767,-1000.0,0.00011556,2]
[408382266,1773534646776,-1000.0,0.0001156,2]
[408382268,1773534646785,-1000.0,0.0001156,2]
[408382270,1773534646794,-500.0,0.00011572,2]
[408382272,1773534646803,-500.0,0.00011644,2]
[408382274,1773534646813,-951.87145452,0.00011648,2]
[408382276,1773534646824,-250.0,0.0001165,2]
[408382278,1773534646833,-1000.0,0.00011673,2]
[408382280,1773534646843,-151.0,0.00011705,2]
[408382282,1773534646852,-151.0,0.00011705,2]
[408382284,1773534646861,-277.840045,0.00011705,2]
[408382286,1773534646870,-151.0,0.00011705,2]
[408382288,1773534646880,-151.0,0.00011705,2]
[408382290,1773534646889,-151.0,0.00011705,2]
[408382292,1773534646898,-151.0,0.00011705,2]
[408382294,1773534646907,-1394.0,0.00011706,2]
[408382296,1773534646917,-2196.0,0.00011706,2]
[408382298,1773534646926,-640.0,0.00011706,2]
[408382300,1773534646935,-472.669,0.00011706,2]
[408382302,1773534646943,-734.0,0.00011706,2]
[408382304,1773534646952,-183.0,0.00011706,2]
[408382306,1773534646962,-1000.0,0.00011754,2]
[408382308,1773534646971,-541.15706046,0.00011754,2]
[408382310,1773534646981,-1000.0,0.00011754,2]
[408382312,1773534646990,-1000.0,0.00011754,2]
[408382314,1773534647000,-1000.0,0.00011784,2]
[408382316,1773534647010,-1000.0,0.00011784,2]
[408382318,1773534647019,-1000.0,0.00011807,2]
[408382320,1773534647030,-151.0,0.000119,2]
[408382322,1773534647039,-151.0,0.000119,2]
[408382324,1773534647048,-163.398777,0.00011907,2]
[408382326,1773534647057,-8903.425737,0.00011907,2]
[408382328,1773534647066,-879.66278501,0.00012,5]
[408382330,1773534647076,-15380.3736,0.00012055,2]
[408382333,1773534647091,-151.0,0.00012055,2]
[408382335,1773534647099,-151.0,0.00012055,2]
[408382337,1773534647110,-823.0,0.00012089,2]
[408382339,1773534647119,-1500.0,0.00012104,2]
[408382341,1773534647131,-1500.0,0.00012108,2]
[408382343,1773534647140,-1500.0,0.00012108,2]
[408382345,1773534647149,-1000.0,0.0001212,2]
[408382347,1773534647157,-500.0,0.00012192,2]
[408382349,1773534647167,-1500.0,0.00012221,2]
[408382351,1773534647176,-172.37684368,0.00012229,2]
[408382353,1773534647186,-1500.0,0.00012302,2]
[408382355,1773534647195,-1500.0,0.00012302,2]
[408382357,1773534647204,-1500.0,0.00012302,2]
[408382359,1773534647213,-3865.49,0.00012329,2]
[408382361,1773534647222,-3221.24,0.00012329,2]
[408382363,1773534647232,-3221.24,0.00012329,2]
[408382365,1773534647241,-2147.5,0.00012329,2]
[408382367,1773534647250,-1789.58,0.00012329,2]
[408382369,1773534647260,-1491.32,0.00012329,2]
[408382371,1773534647269,-1242.76,0.00012329,2]
[408382373,1773534647278,-1035.64,0.00012329,2]
[408382375,1773534647287,-863.03,0.00012329,2]